lending/lending_fUSD_20241124
["ID","MTS","AMOUNT","RATE_DAILY","PERIOD"]
[343198893,1732438244452,-55534.10673818,0.00049798,38]
[343198894,1732438244466,-3146.07261401,0.00049798,38]
[343198895,1732438244477,-6579.8554339,0.00049798,38]
[343198898,1732438245383,-13774.903185,0.000493,120]
[343198899,1732438245395,-684.0,0.000493,120]
[343198900,1732438245438,-324.60019694,0.000493,120]
[343198901,1732438245604,-5184.57007,0.000493,120]
[343198902,1732438245615,-1443.80000211,0.000493,120]
[343198919,1732438822244,-155.76,0.00041096,2]
[343198920,1732438822276,-500.0,0.00041096,2]
[343198921,1732438822308,-417.22992558,0.00041096,2]
[343198922,1732438822339,-550.23207753,0.000421,2]
[343198923,1732438822369,-677.0,0.000423,2]
[343198924,1732438822401,-228.14,0.0004389,30]
[343198925,1732438822431,-190.12,0.0004389,30]
[343198926,1732438822466,-158.43,0.0004389,30]
[343198927,1732438822495,-792.18,0.0004389,30]
[343198928,1732438822531,-296330.90799689,0.000439,2]
[343198929,1732438978653,-1425.11664156,0.0004389,2]
[343198930,1732438978680,-48574.88335844,0.000439,2]
[343198931,1732438998952,-6931.14929933,0.000439,2]
[343198932,1732438998991,-5355.93446469,0.000449,15]
[343198933,1732438999029,-9649.738221,0.00045,5]
[343198934,1732438999066,-815.0,0.00045194,2]
[343198935,1732438999106,-5355.93446468,0.00045767,15]
[343198936,1732438999156,-266.34,0.00046426,2]
[343198937,1732438999196,-5355.93446468,0.00046633,15]
[343198938,1732438999233,-338.47,0.000472,7]
[343198939,1732438999269,-5355.93446468,0.000475,15]
[343198940,1732438999306,-261.904,0.0004761,120]
[343198941,1732438999342,-183.19,0.00047729,2]
[343198942,1732438999377,-297.4,0.00047798,2]
[343198943,1732438999413,-166.77,0.00048173,120]
[343198944,1732438999445,-815.0,0.00048194,2]
[343198945,1732438999478,-250.0,0.00048289,120]
[343198946,1732438999511,-5355.93446468,0.00048367,15]
[343198947,1732438999546,-187.83,0.00048423,120]
[343198948,1732438999577,-307.92,0.000485,107]
[343198949,1732438999606,-998.18,0.000485,107]
[343198950,1732438999639,-150.34,0.00048584,2]
[343198951,1732438999669,-500.0,0.00048657,2]
[343198952,1732438999699,-266.34,0.0004869,2]
[343198953,1732438999729,-250.0,0.00048718,120]
[343198954,1732438999759,-1000.0,0.0004887,2]
[343198955,1732438999789,-400.0,0.000489,17]
[343198956,1732438999818,-618.50435,0.00049063,30]
[343198957,1732438999845,-2000.0,0.00049181,120]
[343198958,1732438999874,-500.0,0.00049181,120]
[343198959,1732438999901,-200.0,0.00049181,120]
[343198960,1732438999929,-500.0,0.00049181,120]
[343198961,1732438999956,-812.09,0.000492,2]
[343198962,1732438999985,-1371.3123,0.000492,2]
[343198963,1732439000017,-801.24402725,0.000492,15]
[343198964,1732439000045,-320.13756821,0.000492,2]
[343198965,1732439000074,-5355.93446468,0.00049233,15]
[343198966,1732439000103,-656.574,0.0004929,86]
[343198967,1732439000153,-152.16,0.0004929,2]
[343198968,1732439000188,-431.21561,0.0004929,46]
[343198969,1732439000220,-235465.58383612,0.000493,120]
[343198970,1732439001141,-243122.54270983,0.000493,120]
[343198971,1732439001175,-1211.80533381,0.000493,30]
[343198972,1732439001204,-500.0,0.00049315,120]
[343198973,1732439001237,-543.75393489,0.00049315,120]
[343198974,1732439001268,-424.44383203,0.00049315,120]
[343198975,1732439001298,-523.25,0.00049315,120]
[343198976,1732439001332,-523.25,0.00049315,120]
[343198977,1732439001363,-5000.0,0.00049315,120]
[343198978,1732439001395,-5000.0,0.00049315,120]
[343198979,1732439001425,-383.7,0.00049315,120]
[343198980,1732439001455,-500.0,0.00049315,120]
[343198981,1732439001485,-318.03670881,0.00049315,120]
[343198982,1732439001516,-500.0,0.00049315,120]
[343198983,1732439001546,-500.0,0.00049315,120]
[343198984,1732439001576,-1456.18,0.00049315,120]
[343198985,1732439001605,-1456.18,0.00049315,120]
[343198986,1732439001636,-1456.18,0.00049315,120]
[343198987,1732439001665,-487.1943929,0.00049315,120]
[343198988,1732439001697,-500.0,0.00049315,120]
[343198989,1732439001728,-500.0,0.00049315,120]
[343198990,1732439001758,-500.0,0.00049315,120]
[343198991,1732439001790,-500.0,0.00049315,120]
[343198992,1732439001822,-363.91117185,0.00049315,120]
[343198993,1732439001853,-505.62332996,0.00049315,120]
[343198994,1732439001888,-500.0,0.00049315,120]
[343198995,1732439001918,-443.42829725,0.00049315,120]
[343198996,1732439001952,-500.0,0.00049315,120]
[343198997,1732439001984,-500.0,0.00049315,120]
[343198998,1732439002017,-500.0,0.00049315,120]
[343198999,1732439002048,-331.74939501,0.00049315,21]
[343199000,1732439002081,-5561.7664,0.0004938,2]
[343199001,1732439002114,-152.16,0.0004939,2]
[343199002,1732439002149,-152.16,0.0004939,2]
[343199003,1732439002185,-523.25,0.00049399,120]
[343199004,1732439002217,-5000.0,0.00049399,120]
[343199005,1732439002251,-500.0,0.00049399,120]
[343199006,1732439002282,-1456.18,0.00049399,120]
[343199007,1732439002313,-1456.18,0.00049399,120]
[343199008,1732439002344,-500.0,0.00049399,120]
[343199009,1732439002602,-500.0,0.00049399,120]
[343199010,1732439002635,-267.0,0.000494,7]
[343199011,1732439002665,-14380.07449366,0.000494,120]
[343199012,1732439057882,-1055.0,0.00042,30]
[343199013,1732439057911,-6241.386,0.000438,90]
[343199014,1732439057938,-1055.0,0.000441,30]
[343199015,1732439057965,-2439.37,0.000472,7]
[343199016,1732439057992,-3699.32,0.00047873,7]
[343199017,1732439058017,-312.42,0.000484,107]
[343199018,1732439058045,-250.0,0.00048443,120]
[343199019,1732439058072,-11018.89,0.0004857,7]
[343199020,1732439058100,-500.0,0.00049181,120]
[343199021,1732439058128,-200.0,0.00049181,120]
[343199022,1732439058155,-500.0,0.00049315,120]
[343199023,1732439058188,-500.0,0.00049315,120]
[343199024,1732439058218,-500.0,0.00049315,120]
[343199025,1732439058246,-500.0,0.00049315,120]
[343199026,1732439058273,-500.0,0.00049315,120]
[343199027,1732439058301,-500.0,0.00049315,120]
[343199028,1732439058330,-500.0,0.00049315,120]
[343199029,1732439058359,-500.0,0.00049315,120]
[343199030,1732439058386,-500.0,0.00049315,120]
[343199031,1732439058418,-1000.0,0.00049399,120]
[343199032,1732439058447,-500.0,0.00049399,120]
[343199033,1732439058731,-500.0,0.00049399,120]
[343199034,1732439058762,-500.0,0.00049399,120]
[343199035,1732439058791,-378.42074121,0.00049399,120]
[343199036,1732439058820,-500.0,0.00049399,120]
[343199037,1732439058848,-500.0,0.00049399,120]
[343199038,1732439058877,-14850.19325879,0.000494,120]
[343199039,1732439059412,-50000.0,0.000494,120]
[343199040,1732439060228,-50000.0,0.000494,120]
[343199041,1732439060968,-20769.73224755,0.000494,120]
[343199042,1732439060995,-29230.26775245,0.000494,120]
[343199043,1732439061746,-50000.0,0.000494,120]
[343199044,1732439062553,-50000.0,0.000494,120]
[343199045,1732439063913,-1055.0,0.000399,5]
[343199046,1732439063940,-48945.0,0.000494,120]
[343199047,1732439064994,-50000.0,0.000494,120]
[343199048,1732439065850,-21824.73224755,0.000494,120]
[343199049,1732439065888,-5000.0,0.0004949,120]
[343199050,1732439065918,-575.28,0.00049498,120]
[343199051,1732439065944,-575.28,0.00049498,120]
[343199052,1732439065971,-273.26,0.00049498,120]
[343199053,1732439065997,-477.80054349,0.00049498,120]
[343199054,1732439066023,-500.0,0.00049498,120]
[343199055,1732439066049,-500.0,0.00049498,120]
[343199056,1732439066075,-500.0,0.00049498,120]
[343199057,1732439066102,-500.0,0.00049498,120]
[343199058,1732439066129,-500.0,0.00049498,120]
[343199059,1732439066154,-500.0,0.00049498,120]
[343199060,1732439066184,-500.0,0.00049498,120]
[343199061,1732439066217,-500.0,0.00049498,120]
[343199062,1732439066244,-500.0,0.00049498,120]
[343199063,1732439066272,-500.0,0.00049498,120]
[343199064,1732439066298,-881.3,0.00049498,120]
[343199065,1732439066323,-881.3,0.00049498,120]
[343199066,1732439066350,-1228.03,0.00049498,120]
[343199067,1732439066374,-1228.03,0.00049498,120]
[343199068,1732439066399,-500.0,0.00049498,120]
[343199069,1732439066426,-500.0,0.00049498,120]
[343199070,1732439066451,-600.4,0.00049498,120]
[343199071,1732439066476,-600.4,0.00049498,120]
[343199072,1732439066502,-670.46,0.00049498,120]
[343199073,1732439066528,-670.46,0.00049498,120]
[343199074,1732439066556,-500.0,0.00049498,120]
[343199075,1732439066583,-500.0,0.00049498,120]
[343199076,1732439066610,-500.0,0.00049498,120]
[343199077,1732439066636,-500.0,0.00049498,120]
[343199078,1732439066664,-489.02656343,0.00049498,120]
[343199079,1732439066692,-900.0,0.000495,18]
[343199080,1732439066717,-165.18516774,0.000495,120]
[343199081,1732439066743,-4959.05547779,0.00049578,120]
[343199082,1732439066793,-40.94452221,0.00049578,120]
[343199083,1732439066819,-500.0,0.00049578,120]
[343199084,1732439066845,-575.28,0.00049579,120]
[343199085,1732439066869,-575.28,0.00049579,120]
[343199086,1732439066894,-575.28,0.00049579,120]
[343199087,1732439066920,-575.28,0.00049579,120]
[343199088,1732439066946,-575.28,0.00049579,120]
[343199089,1732439066973,-575.28,0.00049579,120]
[343199090,1732439066999,-575.28,0.00049579,120]
[343199091,1732439067024,-575.28,0.00049579,120]
[343199092,1732439067050,-575.28,0.00049579,120]
[343199093,1732439067077,-575.28,0.00049579,120]
[343199094,1732439067104,-500.0,0.00049579,120]
[343199095,1732439067131,-516.07380515,0.00049579,120]
[343199096,1732439067157,-500.0,0.00049579,120]
[343199097,1732439067188,-500.0,0.00049579,120]
[343199098,1732439067216,-500.0,0.00049579,120]
[343199099,1732439067242,-500.0,0.00049579,120]
[343199100,1732439067269,-500.0,0.00049579,120]
[343199101,1732439067295,-500.0,0.00049579,120]
[343199102,1732439067321,-500.0,0.00049579,120]
[343199103,1732439067349,-500.0,0.00049579,120]
[343199104,1732439067374,-500.0,0.00049579,120]
[343199105,1732439067400,-500.0,0.00049579,120]
[343199106,1732439067432,-500.0,0.00049579,120]
[343199107,1732439067456,-500.0,0.00049579,120]
[343199108,1732439067481,-500.0,0.00049579,120]
[343199109,1732439067507,-500.0,0.00049579,120]
[343199110,1732439067531,-500.0,0.00049579,120]
[343199111,1732439067702,-500.0,0.00049579,120]
[343199112,1732439067730,-500.0,0.00049579,120]
[343199113,1732439067757,-500.0,0.00049579,120]
[343199114,1732439067784,-500.0,0.00049579,120]
[343199115,1732439067811,-500.0,0.00049579,120]
[343199116,1732439067837,-500.0,0.00049579,120]
[343199117,1732439067864,-500.0,0.00049579,120]
[343199118,1732439067891,-500.0,0.00049579,120]
[343199119,1732439067919,-500.0,0.00049579,120]
[343199120,1732439067945,-500.0,0.00049579,120]
[343199121,1732439067969,-500.0,0.00049579,120]
[343199122,1732439067994,-500.0,0.00049579,120]
[343199123,1732439068020,-500.0,0.00049579,120]
[343199124,1732439068045,-500.0,0.00049579,120]
[343199125,1732439068071,-301.1864839,0.00049579,120]
[343199126,1732439068096,-500.0,0.00049579,120]
[343199127,1732439068121,-500.0,0.00049579,120]
[343199128,1732439068146,-500.0,0.00049579,120]
[343199129,1732439068176,-297.10022359,0.00049579,120]
[343199130,1732439068202,-881.3,0.00049579,120]
[343199131,1732439068228,-881.3,0.00049579,120]
[343199132,1732439068255,-881.3,0.00049579,120]
[343199133,1732439068280,-881.3,0.00049579,120]
[343199134,1732439068305,-881.3,0.00049579,120]
[343199135,1732439068329,-881.3,0.00049579,120]
[343199136,1732439068353,-881.3,0.00049579,120]
[343199137,1732439068378,-881.3,0.00049579,120]
[343199138,1732439068402,-881.3,0.00049579,120]
[343199139,1732439068426,-881.3,0.00049579,120]
[343199140,1732439068451,-1228.03,0.00049579,120]
[343199141,1732439068475,-1228.03,0.00049579,120]
[343199142,1732439068500,-1228.03,0.00049579,120]
[343199143,1732439068524,-1228.03,0.00049579,120]
[343199144,1732439068548,-1228.03,0.00049579,120]
[343199145,1732439068574,-1228.03,0.00049579,120]
[343199146,1732439068600,-1228.03,0.00049579,120]
[343199147,1732439068625,-1228.03,0.00049579,120]
[343199148,1732439068652,-1228.03,0.00049579,120]
[343199149,1732439068680,-1228.03,0.00049579,120]
[343199150,1732439068706,-500.0,0.00049579,120]
[343199151,1732439068731,-500.0,0.00049579,120]
[343199152,1732439068757,-500.0,0.00049579,120]
[343199153,1732439068781,-500.0,0.00049579,120]
[343199154,1732439068806,-244.17276283,0.00049579,120]
[343199155,1732439068831,-600.4,0.00049579,120]
[343199156,1732439068856,-600.4,0.00049579,120]
[343199157,1732439068881,-600.4,0.00049579,120]
[343199158,1732439068908,-600.4,0.00049579,120]
[343199159,1732439068936,-352.82220232,0.00049579,120]
[343199160,1732439069109,-247.57779768,0.00049579,120]
[343199161,1732439069135,-600.4,0.00049579,120]
[343199162,1732439069160,-600.4,0.00049579,120]
[343199163,1732439069189,-600.4,0.00049579,120]
[343199164,1732439069214,-600.4,0.00049579,120]
[343199165,1732439069239,-600.4,0.00049579,120]
[343199166,1732439069266,-670.46,0.00049579,120]
[343199167,1732439069292,-670.46,0.00049579,120]
[343199168,1732439069318,-670.46,0.00049579,120]
[343199169,1732439069343,-670.46,0.00049579,120]
[343199170,1732439069372,-670.46,0.00049579,120]
[343199171,1732439069397,-670.46,0.00049579,120]
[343199172,1732439069422,-670.46,0.00049579,120]
[343199173,1732439069447,-670.46,0.00049579,120]
[343199174,1732439069471,-670.46,0.00049579,120]
[343199175,1732439069495,-670.46,0.00049579,120]
[343199176,1732439069518,-333.23646929,0.00049579,120]
[343199177,1732439069541,-500.0,0.00049579,120]
[343199178,1732439069565,-500.0,0.00049579,120]
[343199179,1732439069588,-500.0,0.00049579,120]
[343199180,1732439069611,-500.0,0.00049579,120]
[343199181,1732439069634,-500.0,0.00049579,120]
[343199182,1732439069657,-632.77163781,0.00049579,120]
[343199183,1732439069684,-801.24402723,0.00049589,15]
[343199184,1732439069709,-152.16,0.0004959,2]
[343199185,1732439069735,-569.30186818,0.00049599,120]
[343199186,1732439069759,-5000.0,0.00049599,120]
[343199187,1732439069784,-1456.18,0.00049599,120]
[343199188,1732439069813,-500.0,0.00049599,120]
[343199189,1732439069837,-500.0,0.00049599,120]
[343199190,1732439069862,-500.0,0.00049599,120]
[343199191,1732439069887,-1400.0,0.000496,18]
[343199192,1732439069911,-25700.92819981,0.000496,2]
[343199193,1732439069966,-50000.0,0.000496,2]
[343199194,1732439070017,-50000.0,0.000496,2]
[343199195,1732439070289,-50000.0,0.000496,2]
[343199196,1732439070796,-50000.0,0.000496,2]
[343199197,1732439071534,-24299.07180019,0.000496,2]
[343199198,1732439071560,-151.0,0.000496,120]
[343199199,1732439071585,-1859.9721,0.00049628,2]
[343199200,1732439071610,-1456.18,0.00049649,120]
[343199201,1732439071638,-500.0,0.00049649,120]
[343199202,1732439071666,-500.0,0.00049649,120]
[343199203,1732439071695,-21233.77609981,0.0004965,2]
[343199204,1732439072231,-50000.0,0.0004965,2]
[343199205,1732439073004,-50000.0,0.0004965,2]
[343199206,1732439073793,-1055.0,0.00046305,30]
[343199207,1732439073819,-48945.0,0.0004965,2]
[343199208,1732439074578,-46580.37719019,0.0004965,2]
[343199209,1732439074604,-3419.62280981,0.00049663,2]
[343199210,1732439075380,-730.88,0.000494,2]
[343199211,1732439075406,-15028.37719019,0.00049663,2]
[343199212,1732439075433,-618.50435,0.00049676,30]
[343199213,1732439075460,-500.0,0.00049688,120]
[343199214,1732439075487,-500.0,0.00049688,120]
[343199215,1732439075511,-575.28,0.00049698,120]
[343199216,1732439075537,-166.34705003,0.00049698,120]
[343199217,1732439075561,-500.0,0.00049698,120]
[343199218,1732439075598,-881.3,0.00049698,120]
[343199219,1732439075627,-1228.03,0.00049698,120]
[343199220,1732439075654,-600.4,0.00049698,120]
[343199221,1732439075684,-670.46,0.00049698,120]
[343199222,1732439075712,-1456.18,0.00049699,120]
[343199223,1732439075739,-500.0,0.00049699,120]
[343199224,1732439075766,-1900.0,0.000497,18]
[343199225,1732439075792,-24144.24140978,0.0004978,2]
[343199226,1732439076181,-337.44005374,0.0004978,2]
[343199227,1732439076210,-2088.18475062,0.0004978,2]
[343199228,1732439076241,-3759.91810416,0.0004978,2]
[343199229,1732439076271,-152.16,0.00049789,2]
[343199230,1732439076298,-911.30671968,0.00049789,2]
[343199231,1732439076325,-152.16,0.0004979,2]
[343199232,1732439076352,-152.16,0.0004979,2]
[343199233,1732439076378,-152.16,0.0004979,2]
[343199234,1732439076405,-152.16,0.0004979,2]
[343199235,1732439076433,-152.16,0.0004979,2]
[343199236,1732439076461,-152.16,0.0004979,2]
[343199237,1732439076488,-223.0,0.0004979,7]
[343199238,1732439076521,-152.16,0.0004979,2]
[343199239,1732439076549,-152.16,0.0004979,2]
[343199240,1732439076575,-543.37,0.00049798,120]
[343199241,1732439076603,-500.0,0.00049798,120]
[343199242,1732439076630,-500.0,0.00049798,120]
[343199243,1732439076656,-151.0,0.00049798,120]
[343199244,1732439076685,-500.0,0.00049798,120]
[343199245,1732439076712,-543.37,0.00049799,120]
[343199246,1732439076739,-543.37,0.00049799,120]
[343199247,1732439076765,-500.0,0.00049799,120]
[343199248,1732439076792,-500.0,0.00049799,120]
[343199249,1732439076821,-500.0,0.00049799,120]
[343199250,1732439076849,-500.0,0.00049799,120]
[343199251,1732439076876,-150.0,0.00049799,30]
[343199252,1732439076903,-575.28,0.00049799,120]
[343199253,1732439076929,-575.28,0.00049799,120]
[343199254,1732439076956,-151.0,0.00049799,120]
[343199255,1732439076982,-151.0,0.00049799,120]
[343199256,1732439077009,-5000.0,0.00049799,120]
[343199257,1732439077035,-5000.0,0.00049799,120]
[343199258,1732439077062,-500.0,0.00049799,120]
[343199259,1732439077089,-500.0,0.00049799,120]
[343199260,1732439077119,-1456.18,0.00049799,120]
[343199261,1732439077147,-1456.18,0.00049799,120]
[343199262,1732439077176,-1456.18,0.00049799,120]
[343199263,1732439077203,-1456.18,0.00049799,120]
[343199264,1732439077229,-1456.18,0.00049799,120]
[343199265,1732439077256,-1456.18,0.00049799,120]
[343199266,1732439077283,-1456.18,0.00049799,120]
[343199267,1732439077308,-1456.18,0.00049799,120]
[343199268,1732439077335,-1456.18,0.00049799,120]
[343199269,1732439077361,-1456.18,0.00049799,120]
[343199270,1732439077387,-1456.18,0.00049799,120]
[343199271,1732439077416,-1000.0,0.00049799,30]
[343199272,1732439077448,-881.3,0.00049799,120]
[343199273,1732439077475,-881.3,0.00049799,120]
[343199274,1732439077501,-1228.03,0.00049799,120]
[343199275,1732439077532,-1228.03,0.00049799,120]
[343199276,1732439077560,-500.0,0.00049799,120]
[343199277,1732439077587,-500.0,0.00049799,120]
[343199278,1732439077614,-600.4,0.00049799,120]
[343199279,1732439077640,-590.0003718,0.00049799,120]
[343199280,1732439078059,-362.37432811,0.00049315,120]
[343199281,1732439078088,-10.3996282,0.00049799,120]
[343199282,1732439078117,-670.46,0.00049799,120]
[343199283,1732439078144,-670.46,0.00049799,120]
[343199284,1732439078174,-151.0,0.00049799,120]
[343199285,1732439078204,-500.0,0.00049799,120]
[343199286,1732439078230,-500.0,0.00049799,120]
[343199287,1732439078256,-500.0,0.00049799,120]
[343199288,1732439078287,-500.0,0.00049799,120]
[343199289,1732439078313,-500.0,0.00049799,120]
[343199290,1732439078340,-500.0,0.00049799,120]
[343199291,1732439078367,-500.0,0.00049799,120]
[343199292,1732439078401,-500.0,0.00049799,120]
[343199293,1732439078439,-500.0,0.00049799,120]
[343199294,1732439078468,-500.0,0.00049799,120]
[343199295,1732439078496,-500.0,0.00049799,120]
[343199296,1732439078524,-288.921114,0.00049799,120]
[343199297,1732439078551,-288.921114,0.00049799,120]
[343199298,1732439078578,-288.921114,0.00049799,120]
[343199299,1732439078605,-288.921114,0.00049799,120]
[343199300,1732439078631,-151.0,0.00049799,120]
[343199301,1732439078659,-500.0,0.00049799,120]
[343199302,1732439078688,-500.0,0.00049799,120]
[343199303,1732439078715,-1000.0,0.000498,120]
[343199304,1732439078741,-1000.0,0.000498,120]
[343199305,1732439078768,-1005.00187429,0.000498,120]
[343199306,1732439078797,-37323.6197134,0.000498,5]
[343199307,1732439083396,-759.4222664,0.00049789,2]
[343199308,1732439083423,-29240.5777336,0.000498,5]
[343199309,1732439126545,1055.0,0.00034209,5]
[343199310,1732439128789,160.7355,0.00032034,2]
[343199311,1732439147685,1055.0,0.00034,5]
[343199312,1732439171716,151.0,0.0003,120]
[343199322,1732439402848,150.0,0.0003,2]
[343199323,1732439403021,150.0,0.0003,2]
[343199324,1732439403207,150.0,0.0003,2]
[343199325,1732439403381,150.0,0.0003,2]
[343199326,1732439403553,150.0,0.0003,2]
[343199327,1732439403741,150.0,0.0003,2]
[343199328,1732439403948,150.0,0.0003,2]
[343199329,1732439404146,277.52414937,0.0003,2]
[343199337,1732439431691,-1055.0,0.0003601,5]
[343199338,1732439431701,-0.05830094,0.00037905,5]
[343199339,1732439431745,-1054.94169906,0.00037905,5]
[343199340,1732439431755,-5072.45485593,0.00040996,2]
[343199341,1732439431765,-158.37,0.00041096,2]
[343199342,1732439431776,-151.0,0.00042,120]
[343199343,1732439431786,-150.0,0.00043173,2]
[343199344,1732439431797,-273.9,0.00046578,2]
[343199345,1732439431807,-270.277,0.0004728,120]
[343199346,1732439431816,-14772.82683693,0.00048161,2]
[343199347,1732439431832,-9127.17316307,0.00048161,2]
[343199348,1732439431842,-267.85,0.000483,120]
[343199349,1732439431852,-1456.98,0.00048348,120]
[343199350,1732439431862,-250.0,0.00048425,120]
[343199351,1732439431871,-1011.36,0.000485,107]
[343199352,1732439431881,-1055.0,0.0004862,30]
[343199353,1732439431891,-1000.0,0.00048655,2]
[343199354,1732439431900,-157.55,0.00048736,2]
[343199355,1732439431910,-273.9,0.00048842,2]
[343199356,1732439431920,-325.213558,0.00049063,30]
[343199357,1732439431930,-657.79,0.000492,2]
[343199358,1732439431939,-15025.4294,0.000493,2]
[343199359,1732439431949,-197.2849,0.000493,2]
[343199360,1732439431961,-150.0,0.00049301,4]
[343199361,1732439431971,-14704.0,0.00049302,30]
[343199362,1732439431981,-1002.70262198,0.00049314,9]
[343199363,1732439431991,-501.89369903,0.00049315,120]
[343199364,1732439432001,-500.0,0.00049315,120]
[343199365,1732439432010,-500.0,0.00049315,120]
[343199366,1732439432020,-500.0,0.00049315,120]
[343199367,1732439432030,-1042.33,0.00049315,120]
[343199368,1732439432040,-1042.33,0.00049315,120]
[343199369,1732439432049,-1042.33,0.00049315,120]
[343199370,1732439432059,-504.87753919,0.00049315,120]
[343199371,1732439432069,-500.0,0.00049315,120]
[343199372,1732439432078,-500.0,0.00049315,120]
[343199373,1732439432098,-500.0,0.00049315,120]
[343199374,1732439432107,-680.48,0.00049315,120]
[343199375,1732439432118,-680.48,0.00049315,120]
[343199376,1732439432128,-680.48,0.00049315,120]
[343199377,1732439432137,-500.0,0.00049315,120]
[343199378,1732439432147,-500.0,0.00049315,120]
[343199379,1732439432156,-500.0,0.00049315,120]
[343199380,1732439432166,-500.0,0.00049315,120]
[343199381,1732439432176,-500.0,0.00049315,120]
[343199382,1732439432185,-500.0,0.00049315,120]
[343199383,1732439432195,-500.0,0.00049315,120]
[343199384,1732439432204,-500.0,0.00049315,120]
[343199385,1732439432215,-500.0,0.00049315,120]
[343199386,1732439432225,-500.0,0.00049315,120]
[343199387,1732439432234,-500.0,0.00049315,120]
[343199388,1732439432244,-500.0,0.00049315,120]
[343199389,1732439432254,-500.0,0.00049315,120]
[343199390,1732439432264,-500.0,0.00049315,120]
[343199391,1732439432273,-500.0,0.00049315,120]
[343199392,1732439432283,-500.0,0.00049315,120]
[343199393,1732439432292,-500.0,0.00049315,120]
[343199394,1732439432302,-500.0,0.00049315,120]
[343199395,1732439432312,-500.0,0.00049315,120]
[343199396,1732439432321,-500.0,0.00049315,120]
[343199397,1732439432331,-500.0,0.00049315,120]
[343199398,1732439432341,-500.0,0.00049315,120]
[343199399,1732439432350,-500.0,0.00049315,120]
[343199400,1732439432359,-500.0,0.00049315,120]
[343199401,1732439432368,-500.0,0.00049315,120]
[343199402,1732439432379,-500.0,0.00049315,120]
[343199403,1732439432388,-500.0,0.00049315,120]
[343199404,1732439432400,-500.0,0.00049315,120]
[343199405,1732439432415,-925.42,0.00049315,120]
[343199406,1732439432424,-500.0,0.00049315,120]
[343199407,1732439432434,-925.42,0.00049315,120]
[343199408,1732439432443,-925.42,0.00049315,120]
[343199409,1732439432452,-500.0,0.00049315,120]
[343199410,1732439432462,-500.0,0.00049315,120]
[343199411,1732439432472,-500.0,0.00049315,120]
[343199412,1732439432481,-500.0,0.00049315,120]
[343199413,1732439432491,-500.0,0.00049315,120]
[343199414,1732439432500,-649.9597606,0.00049315,120]
[343199415,1732439432510,-500.0,0.00049315,120]
[343199416,1732439432519,-500.0,0.00049315,120]
[343199417,1732439432529,-500.0,0.00049315,120]
[343199418,1732439432539,-500.0,0.00049315,120]
[343199419,1732439432549,-267.08368871,0.00049315,120]
[343199440,1732439438353,-250.0,0.00048281,120]
[343199441,1732439438363,-232.91631129,0.00049315,120]
[343199442,1732439438372,-500.0,0.00049315,120]
[343199443,1732439438385,-504.22346031,0.00049315,120]
[343199444,1732439438394,-500.0,0.00049315,120]
[343199445,1732439438404,-500.0,0.00049315,120]
[343199446,1732439438413,-500.0,0.00049315,120]